[Event "Early-Titled-Tuesday-Blitz-April-23-2024"]
[Site "Chess.com"]
[Date "2024.04.23"]
[Round "4"]
[White "aa175"]
[Black "Ural_bogatyr"]
[Result "0-1"]
[WhiteElo "2746"]
[BlackElo "2574"]
[TimeControl "180+1"]
[EndTime "8:37:12 PDT"]
[Termination "Ural_bogatyr won by resignation"]

1. d4 {[%clk 0:02:59.5]} 1... Nf6 {[%clk 0:02:57.6]} 2. Bf4 {[%clk 0:02:59.5]}
2... d5 {[%clk 0:02:57.5]} 3. e3 {[%clk 0:03:00.1]} 3... c5 {[%clk 0:02:57.3]}
4. Nf3 {[%clk 0:03:00.5]} 4... Nc6 {[%clk 0:02:57.2]} 5. c3 {[%clk 0:02:57.5]}
5... Nh5 {[%clk 0:02:57.1]} 6. Be5 {[%clk 0:02:56.2]} 6... e6 {[%clk 0:02:56.2]}
7. dxc5 {[%clk 0:02:54]} 7... Bxc5 {[%clk 0:02:55.7]} 8. Bd4 {[%clk 0:02:45.1]}
8... Bd6 {[%clk 0:02:48.3]} 9. c4 {[%clk 0:02:41.2]} 9... Nf6 {[%clk 0:02:13]}
10. cxd5 {[%clk 0:02:32.2]} 10... Nxd5 {[%clk 0:02:09.6]} 11. Bxg7 {[%clk
0:02:20.1]} 11... Rg8 {[%clk 0:02:09]} 12. Bc3 {[%clk 0:02:09.4]} 12... Qb6
{[%clk 0:01:44.2]} 13. Nbd2 {[%clk 0:01:50.2]} 13... Nxc3 {[%clk 0:01:41.3]} 14.
bxc3 {[%clk 0:01:51]} 14... Qa5 {[%clk 0:01:38.2]} 15. Ne4 {[%clk 0:01:45.8]}
15... Be7 {[%clk 0:01:35.6]} 16. Rc1 {[%clk 0:01:24.4]} 16... e5 {[%clk
0:01:28.7]} 17. Nd6+ {[%clk 0:01:23.2]} 17... Bxd6 {[%clk 0:01:26.6]} 18. Qxd6
{[%clk 0:01:24.1]} 18... Be6 {[%clk 0:01:25.6]} 19. Be2 {[%clk 0:01:18.8]} 19...
Rd8 {[%clk 0:01:16.4]} 20. Qxd8+ {[%clk 0:01:13.1]} 0-1

[Event "Early-Titled-Tuesday-Blitz-April-23-2024"]
[Site "Chess.com"]
[Date "2024.04.23"]
[Round "4"]
[White "adotand"]
[Black "NovozhilovSemen"]
[Result "1-0"]
[WhiteElo "2954"]
[BlackElo "2640"]
[TimeControl "180+1"]
[EndTime "8:37:15 PDT"]
[Termination "adotand won by resignation"]

1. e4 {[%clk 0:03:00.9]} 1... c5 {[%clk 0:02:58.7]} 2. Nf3 {[%clk 0:03:00.8]}
2... Nc6 {[%clk 0:02:59]} 3. Bc4 {[%clk 0:02:55.7]} 3... d6 {[%clk 0:02:56.8]}
4. O-O {[%clk 0:02:54.9]} 4... g6 {[%clk 0:02:55.5]} 5. c3 {[%clk 0:02:54.8]}
5... Bg7 {[%clk 0:02:55.5]} 6. h3 {[%clk 0:02:55.4]} 6... e6 {[%clk 0:02:55.7]}
7. d4 {[%clk 0:02:53.6]} 7... cxd4 {[%clk 0:02:55.3]} 8. cxd4 {[%clk 0:02:54.5]}
8... d5 {[%clk 0:02:55.8]} 9. Bd3 {[%clk 0:02:52.9]} 9... Nf6 {[%clk 0:02:55.3]}
10. e5 {[%clk 0:02:53.1]} 10... Nd7 {[%clk 0:02:54.9]} 11. Nc3 {[%clk
0:02:51.9]} 11... O-O {[%clk 0:02:51.1]} 12. Re1 {[%clk 0:02:51.9]} 12... a6
{[%clk 0:02:43.4]} 13. h4 {[%clk 0:02:44.1]} 13... h6 {[%clk 0:02:40.2]} 14. h5
{[%clk 0:02:43.9]} 14... g5 {[%clk 0:02:37.5]} 15. Bc2 {[%clk 0:02:42.7]} 15...
f5 {[%clk 0:02:30.4]} 16. exf6 {[%clk 0:02:41.4]} 16... Nxf6 {[%clk 0:02:29.5]}
17. Ne5 {[%clk 0:02:38.4]} 17... Nxe5 {[%clk 0:02:25.4]} 18. dxe5 {[%clk
0:02:39.3]} 18... Nd7 {[%clk 0:02:25.8]} 19. Qd3 {[%clk 0:02:39.4]} 19... Rf5
{[%clk 0:02:19.5]} 20. Be3 {[%clk 0:02:17.1]} 20... Nxe5 {[%clk 0:02:16.7]} 21.
Qe2 {[%clk 0:02:17.6]} 21... Rf8 {[%clk 0:02:12.5]} 22. Bd4 {[%clk 0:02:17.8]}
22... Nc6 {[%clk 0:01:57.7]} 23. Bxg7 {[%clk 0:02:17.8]} 23... Kxg7 {[%clk
0:01:58.2]} 24. Qd3 {[%clk 0:02:18.5]} 24... Rf5 {[%clk 0:01:36.4]} 25. g4
{[%clk 0:02:18.6]} 25... Rf6 {[%clk 0:01:36.7]} 26. Qh7+ {[%clk 0:02:16.4]}
26... Kf8 {[%clk 0:01:36.3]} 27. Rad1 {[%clk 0:02:10.4]} 27... Qb6 {[%clk
0:01:15.2]} 28. Qh8+ {[%clk 0:02:04.5]} 28... Kf7 {[%clk 0:01:13.6]} 29. Bg6+
{[%clk 0:02:04.4]} 29... Rxg6 {[%clk 0:01:13.4]} 30. hxg6+ {[%clk 0:02:05]}
30... Kxg6 {[%clk 0:01:14]} 31. Qg8+ {[%clk 0:01:58.9]} 31... Kf6 {[%clk
0:01:13.7]} 32. Qf8+ {[%clk 0:01:57.8]} 32... Kg6 {[%clk 0:01:13.2]} 33. Rd3
{[%clk 0:01:55]} 33... Qb4 {[%clk 0:01:10.1]} 34. Qg8+ {[%clk 0:01:54.2]} 34...
Kf6 {[%clk 0:01:09.9]} 35. Rf3+ {[%clk 0:01:54.7]} 1-0

[Event "Early-Titled-Tuesday-Blitz-April-23-2024"]
[Site "Chess.com"]
[Date "2024.04.23"]
[Round "4"]
[White "Rdeux42"]
[Black "SahibSinghKnight"]
[Result "0-1"]
[WhiteElo "2412"]
[BlackElo "2634"]
[TimeControl "180+1"]
[EndTime "8:37:18 PDT"]
[Termination "SahibSinghKnight won by resignation"]

1. e4 {[%clk 0:03:00.9]} 1... e6 {[%clk 0:02:58]} 2. d4 {[%clk 0:03:00.4]} 2...
d5 {[%clk 0:02:57.1]} 3. Nc3 {[%clk 0:03:01.3]} 3... Nf6 {[%clk 0:02:55.2]} 4.
e5 {[%clk 0:03:02.2]} 4... Nfd7 {[%clk 0:02:54.8]} 5. f4 {[%clk 0:03:02.9]} 5...
c5 {[%clk 0:02:55.3]} 6. Nf3 {[%clk 0:03:02]} 6... Nc6 {[%clk 0:02:55.9]} 7. Be3
{[%clk 0:03:01.8]} 7... Be7 {[%clk 0:02:56.1]} 8. a3 {[%clk 0:03:00.5]} 8... O-O
{[%clk 0:02:53.4]} 9. dxc5 {[%clk 0:03:00.4]} 9... f6 {[%clk 0:02:38.7]} 10.
exf6 {[%clk 0:02:48.9]} 10... Nxf6 {[%clk 0:02:36.5]} 11. Qd2 {[%clk 0:02:40.1]}
11... Qa5 {[%clk 0:02:21.4]} 12. Rd1 {[%clk 0:02:10.2]} 12... Bxc5 {[%clk
0:02:19.8]} 13. Bxc5 {[%clk 0:02:02.8]} 13... Qxc5 {[%clk 0:02:19.5]} 14. Nd4
{[%clk 0:02:01.2]} 14... e5 {[%clk 0:02:12.3]} 15. Nb3 {[%clk 0:01:54.5]} 15...
Qe7 {[%clk 0:02:11.7]} 16. fxe5 {[%clk 0:01:50.8]} 16... Nxe5 {[%clk 0:01:59.9]}
17. Be2 {[%clk 0:01:50.1]} 17... Nc4 {[%clk 0:01:58.5]} 18. Nxd5 {[%clk
0:01:44.6]} 18... Nxd5 {[%clk 0:01:58.4]} 19. Qxd5+ {[%clk 0:01:41.4]} 19... Be6
{[%clk 0:01:58.5]} 20. Qe4 {[%clk 0:01:32.3]} 20... Rae8 {[%clk 0:01:47.2]} 21.
Bxc4 {[%clk 0:01:05.7]} 21... Qf7 {[%clk 0:01:47.1]} 22. Rf1 {[%clk 0:00:53.4]}
22... Bxc4 {[%clk 0:01:46]} 23. Rxf7 {[%clk 0:00:41.4]} 23... Rxe4+ {[%clk
0:01:45.8]} 0-1

[Event "Early-Titled-Tuesday-Blitz-April-23-2024"]
[Site "Chess.com"]
[Date "2024.04.23"]
[Round "4"]
[White "koncheto"]
[Black "sokidze"]
[Result "0-1"]
[WhiteElo "2603"]
[BlackElo "2819"]
[TimeControl "180+1"]
[EndTime "8:37:25 PDT"]
[Termination "sokidze won by resignation"]

1. e4 {[%clk 0:03:00.9]} 1... c6 {[%clk 0:02:59.2]} 2. d4 {[%clk 0:02:56.3]}
2... d5 {[%clk 0:02:59.5]} 3. Nc3 {[%clk 0:02:56.8]} 3... dxe4 {[%clk
0:02:59.6]} 4. Nxe4 {[%clk 0:02:57.7]} 4... Bf5 {[%clk 0:02:59.6]} 5. Ng3 {[%clk
0:02:58]} 5... Bg6 {[%clk 0:02:59.7]} 6. Nf3 {[%clk 0:02:58.7]} 6... e6 {[%clk
0:02:59.7]} 7. h4 {[%clk 0:02:59.3]} 7... h6 {[%clk 0:02:59.6]} 8. Ne5 {[%clk
0:02:59.5]} 8... Bh7 {[%clk 0:02:59.5]} 9. Bc4 {[%clk 0:03:00.1]} 9... Nd7
{[%clk 0:02:40.5]} 10. f4 {[%clk 0:03:00.1]} 10... Be7 {[%clk 0:02:36.6]} 11.
Qg4 {[%clk 0:02:51.4]} 11... Nxe5 {[%clk 0:01:29.4]} 12. fxe5 {[%clk 0:02:49.5]}
12... Bxc2 {[%clk 0:01:00.5]} 13. Qxg7 {[%clk 0:02:31.2]} 13... Qxd4 {[%clk
0:00:57.9]} 14. Be2 {[%clk 0:01:51.4]} 14... O-O-O {[%clk 0:00:52.8]} 15. Qxh8
{[%clk 0:01:47.7]} 15... Bb4+ {[%clk 0:00:43.1]} 16. Kf1 {[%clk 0:01:47.6]}
16... Bc5 {[%clk 0:00:43.8]} 0-1

[Event "Early-Titled-Tuesday-Blitz-April-23-2024"]
[Site "Chess.com"]
[Date "2024.04.23"]
[Round "4"]
[White "isaks"]
[Black "Naruto75_3"]
[Result "0-1"]
[WhiteElo "2542"]
[BlackElo "2382"]
[TimeControl "180+1"]
[EndTime "8:37:30 PDT"]
[Termination "Naruto75_3 won by resignation"]

1. e4 {[%clk 0:03:00.9]} 1... c5 {[%clk 0:02:56.2]} 2. Nf3 {[%clk 0:03:01.1]}
2... d6 {[%clk 0:02:55]} 3. d4 {[%clk 0:02:59.7]} 3... cxd4 {[%clk 0:02:53.5]}
4. Nxd4 {[%clk 0:03:00.6]} 4... Nf6 {[%clk 0:02:52.5]} 5. Nc3 {[%clk 0:03:01.2]}
5... a6 {[%clk 0:02:51.3]} 6. Bc4 {[%clk 0:02:58.7]} 6... e6 {[%clk 0:02:50.7]}
7. Bb3 {[%clk 0:02:58.6]} 7... Be7 {[%clk 0:02:34.7]} 8. O-O {[%clk 0:02:57]}
8... O-O {[%clk 0:02:32.9]} 9. f4 {[%clk 0:02:56.9]} 9... Qc7 {[%clk 0:02:29.3]}
10. Kh1 {[%clk 0:02:56.2]} 10... Rd8 {[%clk 0:02:24.8]} 11. Qf3 {[%clk
0:02:54.8]} 11... Nc6 {[%clk 0:02:22.7]} 12. Be3 {[%clk 0:02:51]} 12... e5
{[%clk 0:02:22.1]} 13. Nxc6 {[%clk 0:02:44.5]} 13... bxc6 {[%clk 0:02:19.9]} 14.
Rad1 {[%clk 0:02:44.2]} 14... Bg4 {[%clk 0:02:16.4]} 15. Qg3 {[%clk 0:02:42.5]}
15... Bxd1 {[%clk 0:02:15.5]} 16. Rxd1 {[%clk 0:02:42.3]} 16... exf4 {[%clk
0:02:06.1]} 17. Bxf4 {[%clk 0:02:43.2]} 17... Nh5 {[%clk 0:02:05.5]} 18. Qf3
{[%clk 0:02:41]} 18... Nxf4 {[%clk 0:02:04.2]} 19. Qxf4 {[%clk 0:02:41.9]} 19...
Bf6 {[%clk 0:02:03.6]} 20. h3 {[%clk 0:02:38.1]} 20... Qe7 {[%clk 0:02:01.5]}
21. Na4 {[%clk 0:02:37.1]} 21... Rab8 {[%clk 0:01:59.5]} 22. c4 {[%clk
0:02:34.9]} 22... Rb4 {[%clk 0:01:57]} 23. Qf3 {[%clk 0:02:30.8]} 23... h6
{[%clk 0:01:55.1]} 24. a3 {[%clk 0:02:30.9]} 24... Rbb8 {[%clk 0:01:53.4]} 25.
Rf1 {[%clk 0:02:27.2]} 25... c5 {[%clk 0:01:45.9]} 26. Bc2 {[%clk 0:02:23.7]}
26... Bxb2 {[%clk 0:01:41.8]} 27. Qf5 {[%clk 0:02:19.5]} 27... Be5 {[%clk
0:01:39.4]} 28. Rf3 {[%clk 0:02:08.8]} 28... Rb7 {[%clk 0:01:35.3]} 29. Nc3
{[%clk 0:01:57.4]} 29... Rdb8 {[%clk 0:01:34.2]} 30. Nd5 {[%clk 0:01:55.2]}
30... Qh4 {[%clk 0:01:31.9]} 31. g3 {[%clk 0:01:40.9]} 31... Bxg3 {[%clk
0:01:25]} 32. e5 {[%clk 0:01:41.3]} 32... g6 {[%clk 0:01:19.5]} 33. Nf6+ {[%clk
0:01:34.7]} 33... Kh8 {[%clk 0:01:17.6]} 0-1

[Event "Early-Titled-Tuesday-Blitz-April-23-2024"]
[Site "Chess.com"]
[Date "2024.04.23"]
[Round "4"]
[White "King_Deded4d5"]
[Black "Sasha_Solovev_777"]
[Result "0-1"]
[WhiteElo "2467"]
[BlackElo "2230"]
[TimeControl "180+1"]
[EndTime "8:37:36 PDT"]
[Termination "Sasha_Solovev_777 won by resignation"]

1. d4 {[%clk 0:03:00.9]} 1... Nf6 {[%clk 0:02:56.4]} 2. Nf3 {[%clk 0:03:00.4]}
2... g6 {[%clk 0:02:54.7]} 3. Nc3 {[%clk 0:03:00.2]} 3... d5 {[%clk 0:02:54.5]}
4. Bf4 {[%clk 0:02:59.8]} 4... c6 {[%clk 0:02:52.9]} 5. e3 {[%clk 0:02:52]} 5...
Bg7 {[%clk 0:02:52.6]} 6. h4 {[%clk 0:02:49.9]} 6... Bg4 {[%clk 0:02:51.2]} 7.
Be2 {[%clk 0:02:49.8]} 7... Nbd7 {[%clk 0:02:47.5]} 8. Ne5 {[%clk 0:02:48.8]}
8... Bxe2 {[%clk 0:02:46.9]} 9. Qxe2 {[%clk 0:02:48.8]} 9... h6 {[%clk
0:02:41.8]} 10. O-O-O {[%clk 0:02:31.2]} 10... e6 {[%clk 0:02:05.2]} 11. g4
{[%clk 0:02:23.7]} 11... Ne4 {[%clk 0:01:48.8]} 12. Nxe4 {[%clk 0:02:18.5]}
12... dxe4 {[%clk 0:01:49.7]} 13. Nc4 {[%clk 0:02:01.3]} 13... O-O {[%clk
0:01:36.5]} 14. Nd6 {[%clk 0:02:01]} 14... Qa5 {[%clk 0:01:18.8]} 15. Kb1 {[%clk
0:01:56.5]} 15... e5 {[%clk 0:00:56.3]} 16. dxe5 {[%clk 0:01:34.9]} 16... Nxe5
{[%clk 0:00:56]} 17. Nxe4 {[%clk 0:01:27]} 17... Qb4 {[%clk 0:00:42.3]} 18. a3
{[%clk 0:01:24.6]} 18... Qxe4 {[%clk 0:00:41.3]} 0-1

[Event "Early-Titled-Tuesday-Blitz-April-23-2024"]
[Site "Chess.com"]
[Date "2024.04.23"]
[Round "4"]
[White "stratacticos"]
[Black "icy"]
[Result "0-1"]
[WhiteElo "1852"]
[BlackElo "2453"]
[TimeControl "180+1"]
[EndTime "8:37:37 PDT"]
[Termination "icy won by resignation"]

1. b4 {[%clk 0:02:59.6]} 1... e5 {[%clk 0:02:58.5]} 2. Bb2 {[%clk 0:02:58.5]}
2... Bxb4 {[%clk 0:02:59.1]} 3. Bxe5 {[%clk 0:02:57.7]} 3... Nf6 {[%clk
0:03:00]} 4. a3 {[%clk 0:02:56.7]} 4... Nc6 {[%clk 0:02:56.7]} 5. Bb2 {[%clk
0:02:50.9]} 5... Be7 {[%clk 0:02:43.3]} 6. g3 {[%clk 0:02:41.9]} 6... O-O {[%clk
0:02:42.4]} 7. Bg2 {[%clk 0:02:41.6]} 7... d5 {[%clk 0:02:43.3]} 8. Nf3 {[%clk
0:02:41.1]} 8... Re8 {[%clk 0:02:38.4]} 9. O-O {[%clk 0:02:40.6]} 9... h6 {[%clk
0:02:37.5]} 10. d3 {[%clk 0:02:24.2]} 10... Bg4 {[%clk 0:02:34.8]} 11. Nbd2
{[%clk 0:02:23.4]} 11... Qd7 {[%clk 0:02:30.1]} 12. c4 {[%clk 0:02:23.1]} 12...
Bh3 {[%clk 0:02:27.2]} 13. cxd5 {[%clk 0:02:16.7]} 13... Nxd5 {[%clk 0:02:21]}
14. Qa4 {[%clk 0:01:47]} 14... Nb6 {[%clk 0:02:07.9]} 15. Qf4 {[%clk 0:01:38.5]}
15... Bd6 {[%clk 0:02:04.6]} 16. Qh4 {[%clk 0:01:30.9]} 16... Bxg2 {[%clk
0:01:43.2]} 17. Kxg2 {[%clk 0:01:30.4]} 17... Rxe2 {[%clk 0:01:39.8]} 18. Ne4
{[%clk 0:01:25.5]} 18... Rxb2 {[%clk 0:01:32.4]} 19. Nxd6 {[%clk 0:00:39.6]}
19... Qxd6 {[%clk 0:01:30]} 0-1

[Event "Early-Titled-Tuesday-Blitz-April-23-2024"]
[Site "Chess.com"]
[Date "2024.04.23"]
[Round "4"]
[White "Grossboss19"]
[Black "FGHSMN"]
[Result "0-1"]
[WhiteElo "2626"]
[BlackElo "2919"]
[TimeControl "180+1"]
[EndTime "8:37:38 PDT"]
[Termination "FGHSMN won by checkmate"]

1. d4 {[%clk 0:02:56.6]} 1... Nf6 {[%clk 0:02:59.3]} 2. c4 {[%clk 0:02:55]} 2...
e6 {[%clk 0:02:59.5]} 3. Nc3 {[%clk 0:02:53.6]} 3... Bb4 {[%clk 0:02:59.4]} 4.
Qc2 {[%clk 0:02:50.6]} 4... O-O {[%clk 0:02:57]} 5. a3 {[%clk 0:02:41.9]} 5...
Bxc3+ {[%clk 0:02:55.2]} 6. Qxc3 {[%clk 0:02:42.8]} 6... b6 {[%clk 0:02:55.5]}
7. Nf3 {[%clk 0:02:32.3]} 7... Bb7 {[%clk 0:02:55.9]} 8. e3 {[%clk 0:02:32.9]}
8... d6 {[%clk 0:02:54.6]} 9. b4 {[%clk 0:02:30.9]} 9... Nbd7 {[%clk 0:02:53.2]}
10. Be2 {[%clk 0:02:30.4]} 10... Ne4 {[%clk 0:02:53.2]} 11. Qc2 {[%clk
0:02:30.1]} 11... f5 {[%clk 0:02:53.7]} 12. O-O {[%clk 0:02:30]} 12... Qe7
{[%clk 0:02:50.3]} 13. Nd2 {[%clk 0:02:30]} 13... Qg5 {[%clk 0:02:36.8]} 14. g3
{[%clk 0:02:10.9]} 14... Qh6 {[%clk 0:02:32]} 15. f4 {[%clk 0:01:56.4]} 15...
Ndf6 {[%clk 0:02:28.4]} 16. Nxe4 {[%clk 0:01:47.8]} 16... Bxe4 {[%clk
0:02:27.1]} 17. Qd2 {[%clk 0:01:39.2]} 17... g5 {[%clk 0:02:09.5]} 18. Bb2
{[%clk 0:01:35.9]} 18... gxf4 {[%clk 0:02:04.1]} 19. exf4 {[%clk 0:01:31.6]}
19... Kf7 {[%clk 0:01:56.3]} 20. d5 {[%clk 0:01:16.8]} 20... e5 {[%clk
0:01:51.6]} 21. Rad1 {[%clk 0:00:51.2]} 21... Qh3 {[%clk 0:01:29.7]} 22. Rf2
{[%clk 0:00:48.1]} 22... Rg8 {[%clk 0:01:28]} 23. fxe5 {[%clk 0:00:42.7]} 23...
Rxg3+ {[%clk 0:01:26.5]} 24. hxg3 {[%clk 0:00:40.6]} 24... Qh1# {[%clk
0:01:27.4]} 0-1

[Event "Early-Titled-Tuesday-Blitz-April-23-2024"]
[Site "Chess.com"]
[Date "2024.04.23"]
[Round "4"]
[White "sterpfi"]
[Black "ferdipy"]
[Result "1-0"]
[WhiteElo "2223"]
[BlackElo "2367"]
[TimeControl "180+1"]
[EndTime "8:37:40 PDT"]
[Termination "sterpfi won by checkmate"]

1. e4 {[%clk 0:03:00.9]} 1... e6 {[%clk 0:01:32.2]} 2. d4 {[%clk 0:02:58.4]}
2... d5 {[%clk 0:01:33.1]} 3. exd5 {[%clk 0:02:58.1]} 3... exd5 {[%clk 0:01:34]}
4. Nf3 {[%clk 0:02:58.4]} 4... c6 {[%clk 0:01:34.9]} 5. c4 {[%clk 0:02:57.3]}
5... dxc4 {[%clk 0:01:34.7]} 6. Bxc4 {[%clk 0:02:58.2]} 6... Bd6 {[%clk
0:01:34.3]} 7. Nc3 {[%clk 0:02:56.8]} 7... Ne7 {[%clk 0:01:33.4]} 8. O-O {[%clk
0:02:57.3]} 8... O-O {[%clk 0:01:33.4]} 9. Re1 {[%clk 0:02:50.3]} 9... Bg4
{[%clk 0:01:33.8]} 10. h3 {[%clk 0:02:48.7]} 10... Bh5 {[%clk 0:01:33.7]} 11. g4
{[%clk 0:02:49.2]} 11... Bg6 {[%clk 0:01:33]} 12. Ne5 {[%clk 0:02:49.9]} 12...
Nd7 {[%clk 0:01:31.1]} 13. h4 {[%clk 0:02:42.3]} 13... Bxe5 {[%clk 0:01:17]} 14.
dxe5 {[%clk 0:02:40.4]} 14... h6 {[%clk 0:01:12.9]} 15. h5 {[%clk 0:02:31.3]}
15... Bh7 {[%clk 0:01:12.1]} 16. e6 {[%clk 0:02:31.5]} 16... Nf6 {[%clk
0:01:10]} 17. exf7+ {[%clk 0:02:31.1]} 17... Kh8 {[%clk 0:01:10.4]} 18. Qxd8
{[%clk 0:02:29.5]} 18... Raxd8 {[%clk 0:01:10.4]} 19. Rxe7 {[%clk 0:02:28.6]}
19... Nxg4 {[%clk 0:01:10.7]} 20. Be3 {[%clk 0:02:14.9]} 20... b5 {[%clk
0:01:03.5]} 21. Bb3 {[%clk 0:02:12.3]} 21... a5 {[%clk 0:00:58.4]} 22. Rd1
{[%clk 0:02:02.9]} 22... Rxd1+ {[%clk 0:00:54.6]} 23. Bxd1 {[%clk 0:02:03.8]}
23... Nf6 {[%clk 0:00:52.8]} 24. Bf3 {[%clk 0:01:59.5]} 24... a4 {[%clk
0:00:50.9]} 25. Bxc6 {[%clk 0:01:55.7]} 25... b4 {[%clk 0:00:50.3]} 26. Nd5
{[%clk 0:01:50.1]} 26... a3 {[%clk 0:00:43.8]} 27. bxa3 {[%clk 0:01:48.7]} 27...
bxa3 {[%clk 0:00:42.5]} 28. Nxf6 {[%clk 0:01:48.7]} 28... gxf6 {[%clk
0:00:43.3]} 29. Bxh6 {[%clk 0:01:49]} 29... Rc8 {[%clk 0:00:38.5]} 30. f8=Q+
{[%clk 0:01:46.8]} 30... Rxf8 {[%clk 0:00:38.2]} 31. Bxf8 {[%clk 0:01:47.7]}
31... Bg8 {[%clk 0:00:37.8]} 32. Bg7+ {[%clk 0:01:46]} 32... Kh7 {[%clk
0:00:37.6]} 33. Be4+ {[%clk 0:01:46.9]} 33... f5 {[%clk 0:00:35.3]} 34. Bxf5#
{[%clk 0:01:47.8]} 1-0

[Event "Early-Titled-Tuesday-Blitz-April-23-2024"]
[Site "Chess.com"]
[Date "2024.04.23"]
[Round "4"]
[White "ChinguunSu"]
[Black "snowlord"]
[Result "0-1"]
[WhiteElo "2624"]
[BlackElo "2910"]
[TimeControl "180+1"]
[EndTime "8:37:50 PDT"]
[Termination "snowlord won by resignation"]

1. e4 {[%clk 0:03:00.9]} 1... c6 {[%clk 0:02:59.2]} 2. d4 {[%clk 0:03:00.1]}
2... d5 {[%clk 0:03:00.1]} 3. exd5 {[%clk 0:03:00.3]} 3... cxd5 {[%clk
0:02:59.6]} 4. Bd3 {[%clk 0:03:00.7]} 4... Nf6 {[%clk 0:03:00.5]} 5. c3 {[%clk
0:02:57.9]} 5... Bg4 {[%clk 0:03:00.4]} 6. Ne2 {[%clk 0:02:57.1]} 6... Nc6
{[%clk 0:03:00.2]} 7. Bf4 {[%clk 0:02:55.4]} 7... e6 {[%clk 0:02:50.3]} 8. h3
{[%clk 0:02:55.5]} 8... Bh5 {[%clk 0:02:48.9]} 9. Nd2 {[%clk 0:02:54.4]} 9...
Bd6 {[%clk 0:02:45]} 10. Bg5 {[%clk 0:02:53.6]} 10... h6 {[%clk 0:02:39.8]} 11.
Bh4 {[%clk 0:02:52.9]} 11... Ne7 {[%clk 0:02:29.6]} 12. Bxf6 {[%clk 0:02:51.8]}
12... gxf6 {[%clk 0:02:30.4]} 13. g4 {[%clk 0:02:52.2]} 13... Bg6 {[%clk
0:02:30.4]} 14. Qc2 {[%clk 0:02:51.6]} 14... Qa5 {[%clk 0:02:22.9]} 15. f4
{[%clk 0:02:45.8]} 15... Bxd3 {[%clk 0:02:16.5]} 16. Qxd3 {[%clk 0:02:45.7]}
16... h5 {[%clk 0:02:17.1]} 17. gxh5 {[%clk 0:02:44.1]} 17... Rxh5 {[%clk
0:02:11.4]} 18. O-O-O {[%clk 0:02:43.8]} 18... Qxa2 {[%clk 0:02:01.4]} 19. Qb5+
{[%clk 0:02:43.3]} 19... Kd8 {[%clk 0:02:02]} 20. Rdg1 {[%clk 0:02:32.7]} 20...
Kc7 {[%clk 0:01:48.2]} 21. Rg7 {[%clk 0:02:25.3]} 21... a6 {[%clk 0:01:42.8]}
22. Qd3 {[%clk 0:02:21.1]} 22... Rf8 {[%clk 0:01:42.6]} 23. Rhg1 {[%clk
0:02:17.8]} 23... Nf5 {[%clk 0:01:34.8]} 24. Rg8 {[%clk 0:02:16.6]} 24... Rh8
{[%clk 0:01:16.7]} 25. Rxf8 {[%clk 0:02:15.4]} 25... Rxf8 {[%clk 0:01:12.2]} 26.
Ng3 {[%clk 0:02:11.9]} 26... Qa1+ {[%clk 0:01:09.6]} 27. Nb1 {[%clk 0:02:05.6]}
27... Bxf4+ {[%clk 0:01:09]} 28. Kc2 {[%clk 0:02:05.9]} 28... Qa4+ {[%clk
0:01:07.8]} 29. b3 {[%clk 0:01:54.7]} 29... Qa2+ {[%clk 0:01:08.7]} 30. Kd1
{[%clk 0:01:54.8]} 30... Nxg3 {[%clk 0:01:07.3]} 31. Rxg3 {[%clk 0:01:54.3]}
31... Qxb3+ {[%clk 0:01:04.2]} 32. Ke2 {[%clk 0:01:52.8]} 32... Bxg3 {[%clk
0:01:04]} 33. Qxg3+ {[%clk 0:01:52.8]} 33... Kd7 {[%clk 0:01:04.7]} 34. Nd2
{[%clk 0:01:53]} 34... Qc2 {[%clk 0:01:04.4]} 35. Qg7 {[%clk 0:01:51.9]} 35...
Ke7 {[%clk 0:00:59.7]} 36. Qg3 {[%clk 0:01:50.6]} 36... Rc8 {[%clk 0:00:59.9]}
37. c4 {[%clk 0:01:47.9]} 37... dxc4 {[%clk 0:00:57.9]} 38. Qa3+ {[%clk
0:01:46.9]} 38... Ke8 {[%clk 0:00:58.5]} 39. Qd6 {[%clk 0:01:46.8]} 39... c3
{[%clk 0:00:57.8]} 40. Kf3 {[%clk 0:01:45.4]} 40... cxd2 {[%clk 0:00:57.5]} 0-1

[Event "Early-Titled-Tuesday-Blitz-April-23-2024"]
[Site "Chess.com"]
[Date "2024.04.23"]
[Round "4"]
[White "GM_dmitrij"]
[Black "ELPRIMO0O0"]
[Result "1-0"]
[WhiteElo "3005"]
[BlackElo "2642"]
[TimeControl "180+1"]
[EndTime "8:37:56 PDT"]
[Termination "GM_dmitrij won by resignation"]

1. e4 {[%clk 0:03:00.9]} 1... c5 {[%clk 0:02:58]} 2. Nf3 {[%clk 0:03:00.9]} 2...
Nc6 {[%clk 0:02:52.9]} 3. Bb5 {[%clk 0:03:01.2]} 3... g6 {[%clk 0:02:52.3]} 4.
O-O {[%clk 0:03:00.7]} 4... Bg7 {[%clk 0:02:52.8]} 5. c3 {[%clk 0:03:01.1]} 5...
Kf8 {[%clk 0:02:50.2]} 6. d4 {[%clk 0:03:00.6]} 6... a6 {[%clk 0:02:46.2]} 7.
Bxc6 {[%clk 0:02:13.6]} 7... bxc6 {[%clk 0:02:47.1]} 8. dxc5 {[%clk 0:02:13.7]}
8... Nf6 {[%clk 0:02:47]} 9. e5 {[%clk 0:02:11.3]} 9... Nd5 {[%clk 0:02:46.6]}
10. c4 {[%clk 0:02:09.1]} 10... Nc7 {[%clk 0:02:46.7]} 11. Nc3 {[%clk
0:02:09.3]} 11... a5 {[%clk 0:02:42.4]} 12. Re1 {[%clk 0:02:07.7]} 12... Ba6
{[%clk 0:02:36]} 13. b3 {[%clk 0:02:07.7]} 13... Ne6 {[%clk 0:02:35.2]} 14. Ne4
{[%clk 0:02:07.3]} 14... h6 {[%clk 0:02:33.6]} 15. h4 {[%clk 0:02:06.3]} 15...
Kg8 {[%clk 0:02:31.1]} 16. Be3 {[%clk 0:02:04]} 16... Kh7 {[%clk 0:02:30.5]} 17.
a4 {[%clk 0:02:01.4]} 17... Qc7 {[%clk 0:02:29.8]} 18. Qd2 {[%clk 0:01:45.2]}
18... Rab8 {[%clk 0:02:27.1]} 19. Qc3 {[%clk 0:01:31]} 19... Rb4 {[%clk
0:02:24.3]} 20. Red1 {[%clk 0:01:08.6]} 20... Rhb8 {[%clk 0:02:23.9]} 21. Ned2
{[%clk 0:00:54.2]} 21... Qa7 {[%clk 0:02:20.2]} 22. Qc2 {[%clk 0:00:49.5]} 22...
Bc8 {[%clk 0:01:56.7]} 23. h5 {[%clk 0:00:49.3]} 23... Nxc5 {[%clk 0:01:56]} 24.
hxg6+ {[%clk 0:00:48]} 24... fxg6 {[%clk 0:01:56]} 25. Nh4 {[%clk 0:00:48.6]}
25... d6 {[%clk 0:01:36.7]} 26. Qxg6+ {[%clk 0:00:48]} 26... Kh8 {[%clk
0:01:37.2]} 27. Ne4 {[%clk 0:00:42.8]} 27... Qd7 {[%clk 0:01:23.9]} 28. Nxc5
{[%clk 0:00:39.4]} 28... Qg4 {[%clk 0:01:24.5]} 29. Qxg4 {[%clk 0:00:38.7]}
29... Bxg4 {[%clk 0:01:24.6]} 30. f3 {[%clk 0:00:39]} 30... dxc5 {[%clk
0:01:24.7]} 31. fxg4 {[%clk 0:00:39]} 31... Bxe5 {[%clk 0:01:25.3]} 32. Ng6+
{[%clk 0:00:39.1]} 1-0